[Event "German Bundesliga 2022-23"]
[Site "Germany"]
[Date "2022.11.27"]
[Round "4.10"]
[White "Keymer, Vincent"]
[Black "Brkic, Ante"]
[Result "1/2-1/2"]
[ECO "A06"]
[WhiteElo "2698"]
[BlackElo "2610"]
[Annotator "TA"]
[PlyCount "101"]
[EventDate "2022.10.21"]
[EventType "team-tourn"]
[EventCountry "GER"]
[SourceTitle "playchess.com"]
[Source "ChessBase"]
[SourceQuality "1"]
[TimeControl "40/6000+30:3000+30"]

{[%evp 12,101,0,0,16,0,0,-3,14,14,26,0,0,0,0,0,20,20,49,35,49,0,0,-60,-31,-30,-26,-88,-22,-28,-26,-30,-26,-22,-20,-27,-25,-45,-33,-28,-9,-9,-9,-9,-8,-10,0,-22,-24,-25,0,0,0,-33,-25,-49,0,0,0,0,0,0,0,0,0,0,0,0,0,-22,-30,-27,-34,-35,-9,-24,-7,-12,-5,-5,-5,-5,-7,-20,-5,-5,0,0,0,0,0,0]} 1. Nf3 {[%emt 0:00:06]} d5 {[%emt 0:00:11]} 2. g3 {[%emt 0:00:05]} g6 {[%emt 0:01:15]} 3. Bg2 {[%emt 0:00:05]} Bg7 {[%emt 0:00:04]} 4. d4 {[%emt 0:00:04]} Nf6 {[%emt 0:00:05]} 5. O-O {[%emt 0:00:04]} O-O {[%emt 0:00:07]} 6. c3 {[%emt 0:00:16]} c6 {[%emt 0:03:28]} 7. Nbd2 {[%emt 0:00:27]} Na6 {[%emt 0:10:23] D02: 1 d4 d5 2 Nf3 sidelines, including 2...Nf6 3 g3 and 2...Nf6 3 Bf4.} 8. b4 {[%emt 0:23:50] [#]} Nc7 $146 {[%emt 0:02:29]} ({Predecessor:} 8... Bf5 9. a4 Ne4 10. Nxe4 Bxe4 11. Be3 f6 12. Bh3 Bxf3 13. exf3 Nc7 14. Qd3 e5 15. b5 {½-½ (55) Geist,W-Wessel,R freechess.de 2019}) 9. Bb2 {[%emt 0:03:09]} Bf5 {[%emt 0:10:53]} 10. c4 {[%emt 0:02:48]} Ne4 {[%emt 0:04:45]} 11. Rc1 {[%emt 0:04:14]} a5 {[%emt 0:11:29]} 12. bxa5 {[%emt 0:02:09]} Rxa5 {[%emt 0:00:40]} 13. a3 {[%emt 0:00:22]} Qa8 {[%emt 0:15:18]} 14. Nb3 {[%emt 0:07:58]} Ra6 {[%emt 0:09:51]} 15. cxd5 {[%emt 0:01:17] Hoping for Ne5.} Nxd5 {[%emt 0:00:53]} 16. Nh4 {[%emt 0:02:40]} (16. Nfd2 $14 Ndf6 17. Nxe4 Bxe4 18. f3) 16... Rb6 $1 $11 {[%emt 0:01:58]} 17. g4 {[%emt 0:31:36]} (17. Ba1 $11) 17... Qa4 {[%emt 0:00:18]} ({Reject} 17... Bxg4 18. Bxe4 Nf4 19. Nf3 $11) (17... Nxf2 $5 18. Rxf2 Bxg4 $14) 18. gxf5 {[%emt 0:00:17]} Qxb3 {[%emt 0:00:17]} (18... Rxb3 $2 19. Bxe4 Qb5 20. Rc5 $18) 19. Ba1 {[%emt 0:03:21]} (19. Qxb3 $11 {keeps the balance.} Rxb3 20. Bxe4 Rxb2 21. fxg6) 19... Ndf6 {[%emt 0:13:37]} (19... Nd6 $17 {White should prevent ...Bf6.} 20. Rb1 Qxd1 21. Rfxd1 Rxb1 22. Rxb1 gxf5 23. Bxd5 cxd5) 20. Rb1 {[%emt 0:02:32]} (20. fxg6 {simplifies} hxg6 21. Qxb3 Rxb3 22. Rb1) 20... Qxb1 {[%emt 0:00:58]} (20... Qxd1 {simplifies} 21. Rfxd1 Rxb1 22. Rxb1 Nd6) 21. Qxb1 {[%emt 0:00:04]} Rxb1 {[%emt 0:00:03]} 22. Rxb1 {[%emt 0:00:05]} Nd6 {[%emt 0:00:04]} 23. fxg6 {[%emt 0:02:47]} hxg6 {[%emt 0:00:07]} 24. Nf3 {[%emt 0:02:19]} Ra8 {[%emt 0:01:36]} 25. Rb3 {[%emt 0:01:21]} Nc4 {[%emt 0:09:10]} 26. Rxb7 {[%emt 0:03:09][%cal Oa1c3]} Rxa3 {[%emt 0:00:07]} 27. Rb8+ {[%emt 0:00:40]} Bf8 {[%emt 0:00:01]} 28. Rb1 {[%emt 0:00:22]} Nd5 {[%emt 0:02:23]} 29. Bf1 {[%emt 0:04:56]} Ra2 {[%emt 0:04:19]} 30. Rc1 {[%emt 0:03:13]} Na5 {[%emt 0:02:11] [#] Threatens to win with ...Nb3. Pair of Knights!} (30... Na3 $5 {[%cal Rf8h6]} 31. e4 Nf6 $11) 31. Rb1 {[%emt 0:01:49] Inhibits Nb3.} Nc4 {[%emt 0:00:02]} 32. Rd1 {[%emt 0:05:00]} Na3 {[%emt 0:02:42]} 33. Ne1 {[%emt 0:00:52]} Nc2 {[%emt 0:02:17]} (33... Bg7 $1 $15 {is superior.}) 34. Nxc2 {[%emt 0:00:05]} Rxc2 {[%emt 0:00:01]} 35. e3 {[%emt 0:00:52]} e6 {[%emt 0:00:40]} 36. Bd3 {[%emt 0:00:58]} Ra2 {[%emt 0:00:15]} 37. Bc4 {[%emt 0:01:01]} Ra4 {[%emt 0:00:42]} 38. Bb3 {[%emt 0:01:38]} Ra3 {[%emt 0:01:05]} 39. Bc4 {[%emt 0:00:06]} Ra4 {[%emt 0:01:07]} 40. Bf1 {[%emt 0:00:45]} Bg7 {[%emt 0:01:49]} 41. e4 {[%emt 0:14:08]} Nf4 {[%emt 0:02:22][%cal Oc6c5]} 42. Bb2 {[%emt 0:03:26]} Ra2 {[%emt 0:21:30]} 43. Rb1 {[%emt 0:07:31]} g5 {[%emt 0:00:07][%cal Oc6c5,Bg6g5,Bg5f4][%mdl 32]} 44. e5 $1 {[%emt 0:01:17] Against c5. The position is equal.} Bf8 {[%emt 0:00:46]} 45. Bc1 {[%emt 0:05:58]} c5 {[%emt 0:01:07]} 46. Bxf4 {[%emt 0:09:23]} gxf4 {[%emt 0:00:53]} 47. Rd1 {[%emt 0:00:09]} ({Much weaker is} 47. Bc4 Ra4 48. Be2 Rxd4 $17) 47... cxd4 {[%emt 0:02:19]} 48. Rxd4 {[%emt 0:00:17]} Rxf2 {[%emt 0:01:06]} 49. Kxf2 {[%emt 0:00:12]} Bc5 {[%emt 0:00:04]} 50. Kf3 {[%emt 0:00:04]} Bxd4 {[%emt 0:00:03]} 51. Kxf4 {[%emt 0:00:04] Weighted Error Value: White=0.09 (flawless) /Black=0.11 (very precise)} 1/2-1/2

[Event "German Bundesliga 2022-23"]
[Site "Germany"]
[Date "2022.11.27"]
[Round "4.11"]
[White "Markus, Robert"]
[Black "Adams, Michael"]
[Result "1/2-1/2"]
[ECO "E10"]
[WhiteElo "2608"]
[BlackElo "2686"]
[Annotator "TA"]
[PlyCount "42"]
[EventDate "2022.10.21"]
[EventType "team-tourn"]
[EventCountry "GER"]
[SourceTitle "playchess.com"]
[Source "ChessBase"]
[SourceQuality "1"]
[TimeControl "40/6000+30:3000+30"]

{[%evp 16,42,11,4,5,0,0,0,15,0,0,0,0,0,0,0,6,0,0,0,0,0,0,0,0,0,15,19,10]} 1. d4 {[%emt 0:00:05]} Nf6 {[%emt 0:00:06]} 2. c4 {[%emt 0:00:07]} e6 {[%emt 0:00:03]} 3. Nf3 {[%emt 0:00:06]} d5 {[%emt 0:00:06]} 4. e3 {[%emt 0:00:10]} Bd6 {[%emt 0:05:16]} 5. b3 {[%emt 0:02:56]} O-O {[%emt 0:00:47]} 6. Bb2 {[%emt 0:01:20]} b6 {[%emt 0:00:30]} 7. Bd3 {[%emt 0:02:07]} Bb7 {[%emt 0:00:21]} 8. O-O {[%emt 0:00:54]} Nbd7 {[%emt 0:01:16]} 9. Nbd2 {[%emt 0:07:13] The position is equal.} c5 {[%emt 0:09:44] E14: Queen's Indian: Classical Variation (4 e3).} 10. cxd5 {[%emt 0:04:15] 10.Qe2 is not played anymore.} Nxd5 {[%emt 0:00:07]} 11. Ne4 {[%emt 0:00:32]} Be7 {[%emt 0:02:16]} 12. dxc5 {[%emt 0:01:54]} Nxc5 {[%emt 0:00:13]} 13. Nxc5 {[%emt 0:00:07]} Bxc5 {[%emt 0:00:27]} 14. Qe2 {[%emt 0:02:41]} Qe7 {[%emt 0:02:24]} 15. Ba6 {[%emt 0:07:09] [#]} Rac8 $146 {[%emt 0:07:15]} ({Predecessor:} 15... Bxa6 16. Qxa6 Nb4 17. Qc4 Rfd8 18. Qg4 f6 19. Nd4 Bxd4 20. Bxd4 e5 21. Bc3 Nd3 {0-1 (51) Von Rosenberg,C-Wittal,W DESC email 2009}) 16. a3 {[%emt 0:07:25]} Bd6 {[%emt 0:04:21]} 17. Bxb7 {[%emt 0:09:03]} Qxb7 {[%emt 0:00:03]} 18. Rac1 {[%emt 0:00:33]} Be7 {[%emt 0:07:15]} 19. Nd4 {[%emt 0:05:39]} Rxc1 {[%emt 0:10:21]} 20. Rxc1 {[%emt 0:00:11]} Rc8 {[%emt 0:00:16]} 21. Rxc8+ {[%emt 0:02:52]} Qxc8 {[%emt 0:00:06] An interesting draw.   Weighted Error Value: White=0.03 (flawless) /Black=0.02 (flawless)} 1/2-1/2

[Event "German Bundesliga 2022-23"]
[Site "Germany"]
[Date "2022.11.27"]
[Round "4.11"]
[White "Georgiadis, Nico"]
[Black "Korobov, Anton"]
[Result "0-1"]
[ECO "C13"]
[WhiteElo "2577"]
[BlackElo "2659"]
[Annotator "TA"]
[PlyCount "66"]
[EventDate "2022.10.21"]
[EventType "team-tourn"]
[EventCountry "GER"]
[SourceTitle "playchess.com"]
[Source "ChessBase"]
[SourceQuality "1"]
[TimeControl "40/6000+30:3000+30"]

{[%evp 12,66,29,17,35,31,32,19,32,12,15,18,16,16,22,15,14,13,9,0,39,13,22,20,30,23,31,18,37,35,45,0,0,-104,-118,-112,-92,-100,0,0,0,0,0,-4,-8,-121,-129,-108,-112,-206,-206,-466,-472,-429,-451,-808,-795]} 1. e4 {[%emt 0:00:04]} e6 {[%emt 0:00:10]} 2. d4 {[%emt 0:00:07]} d5 {[%emt 0:00:06]} 3. Nc3 {[%emt 0:00:07]} Nf6 {[%emt 0:00:37]} 4. Bg5 {[%emt 0:00:07]} dxe4 {[%emt 0:00:35]} 5. Nxe4 {[%emt 0:00:14]} Be7 {[%emt 0:00:07]} 6. Bxf6 {[%emt 0:00:09]} gxf6 {[%emt 0:00:06]} 7. Qd2 {[%emt 0:00:46]} f5 {[%emt 0:00:32] C13: French: Classical System: 4 Bg5 Be7, Alekhine-Chatard Attack.} 8. Nc3 {[%emt 0:04:19]} c6 {[%emt 0:01:46]} 9. Nf3 {[%emt 0:06:38]} Nd7 {[%emt 0:01:47] The position is equal.} 10. g3 {[%emt 0:05:47]} Qc7 {[%emt 0:08:42]} 11. Bg2 {[%emt 0:01:48]} b6 {[%emt 0:06:13]} 12. O-O-O {[%emt 0:09:44]} Bb7 {[%emt 0:00:16] [#]} 13. Kb1 $146 {[%emt 0:11:11][%cal Of3e5]} ({Predecessor:} 13. Ne5 Nxe5 14. dxe5 Bb4 15. a3 Bxc3 16. Qxc3 Rd8 17. Rd6 O-O 18. Rhd1 Qe7 19. Qd2 Rxd6 20. exd6 {1-0 (27) Kusiak,M (2355)-Pcola,P (2392) Slovakia 2016}) 13... O-O-O {[%emt 0:02:06]} 14. Ng5 {[%emt 0:04:16]} Rdf8 {[%emt 0:04:04]} 15. f4 {[%emt 0:07:11]} b5 {[%emt 0:04:47]} 16. Ne2 {[%emt 0:05:31]} (16. Qe2 $5 {[%cal Rd4d5]}) 16... h6 {[%emt 0:10:43]} 17. Nf3 {[%emt 0:01:34]} c5 {[%emt 0:03:18]} 18. dxc5 {[%emt 0:04:30]} Nxc5 {[%emt 0:03:52]} 19. Ned4 {[%emt 0:01:59]} a6 {[%emt 0:08:06]} 20. Ne5 {[%emt 0:19:25]} Ne4 {[%emt 0:00:35]} 21. Qe2 {[%emt 0:01:20] Threatens to win with c4.} Bf6 {[%emt 0:00:49]} 22. c4 {[%emt 0:03:41]} (22. Rd3 $11) 22... Bxe5 $17 {[%emt 0:06:24]} 23. fxe5 {[%emt 0:00:48]} bxc4 {[%emt 0:00:50][%cal Bb5c4,Bc4c3][%mdl 32]} 24. g4 {[%emt 0:02:53]} Kb8 {[%emt 0:02:56]} (24... Qb6 $1 $17 {And now ...Nc3+ would win.} 25. Ka1 (25. Qxc4+ Kb8 $17) 25... Rd8 26. Bxe4 (26. Qxc4+ Kb8 $17) 26... fxe4 27. Qxc4+ Kb8) 25. gxf5 $11 {[%emt 0:01:03]} exf5 {[%emt 0:00:25]} 26. Nxf5 {[%emt 0:09:03]} Qxe5 {[%emt 0:00:58] ...Nc3+ is the strong threat.} 27. Rhe1 {[%emt 0:00:15][%cal Rg2e4]} Rd8 {[%emt 0:08:26] White must now prevent ...Rxd1+.} 28. Ne3 {[%emt 0:03:29]} (28. Bxe4 $2 Bxe4+ 29. Kc1 Rxd1+ 30. Qxd1 Qxf5 $19) (28. Rxd8+ $2 Rxd8 29. Bxe4 Bxe4+ 30. Qxe4 Rd1+ $3 {[%mdl 512]} 31. Kc2 Rxe1 $19) (28. Ng3 $1 $11 Rxd1+ 29. Rxd1 Nc3+ 30. bxc3 Qxe2 31. Nxe2 Bxg2 32. Rd6) 28... c3 $17 {[%emt 0:06:31] Black is much more active.} 29. Nc4 {[%emt 0:00:42][%csl LRe4,LRe5] Inhibits Nd2+.} Rxd1+ {[%emt 0:02:15]} 30. Qxd1 {[%emt 0:02:11] [#]} (30. Rxd1 $17 Qxh2 31. Rd7) 30... Qf4 $1 $19 {[%emt 0:01:18]} (30... Qf5 31. Bxe4 Bxe4+ 32. Ka1 cxb2+ 33. Kxb2 Qf6+ 34. Ka3 Qc3+ 35. Qb3+ Qxb3+ 36. axb3 $11) 31. Rf1 $2 {[%emt 0:04:23]} (31. Qb3 $2 Qf2 32. Rc1 Qxg2 $19) (31. Ka1 {was worth a try.} cxb2+ 32. Nxb2) 31... Qc7 {[%emt 0:01:03] Black is clearly winning.} (31... Qxh2 $2 {is the wrong capture.} 32. Qd4 Re8 33. Bxe4 (33. Qd7 $2 Rg8 $19) 33... Bxe4+ 34. Ka1 cxb2+ 35. Qxb2+ Qxb2+ 36. Kxb2 $19) (31... Nd2+ 32. Nxd2 Qb4 33. Qb3 Qxb3 34. Nxb3 $11) 32. b3 {[%emt 0:00:43]} Rd8 {[%emt 0:01:01]} ({Weaker is} 32... Qxh2 33. Qd4 Re8 34. Qd7 $11) 33. Qc2 {[%emt 0:00:13]} (33. Qe2 $142 Nd2+ 34. Nxd2 Rxd2 35. Qe8+ Rd8 36. Qe2 Qxh2 37. Bf3 (37. Qe7 $2 c2+ 38. Kb2 c1=Q+ 39. Rxc1 Qxg2+ $19) 37... Qxe2 38. Bxe2 Be4+ 39. Ka1) 33... Nd2+ {[%emt 0:00:31] Weighted Error Value: White=0.55/Black=0.07 (flawless)} 0-1

[Event "German Bundesliga 2022-23"]
[Site "Germany"]
[Date "2022.11.27"]
[Round "4.12"]
[White "Kasimdzhanov, Rustam"]
[Black "Stevic, Hrvoje"]
[Result "1-0"]
[ECO "D20"]
[WhiteElo "2676"]
[BlackElo "2543"]
[Annotator "TA"]
[PlyCount "91"]
[EventDate "2022.10.21"]
[EventType "team-tourn"]
[EventCountry "GER"]
[SourceTitle "playchess.com"]
[Source "ChessBase"]
[SourceQuality "1"]
[TimeControl "40/6000+30:3000+30"]

{[%evp 9,91,20,34,39,57,19,24,24,28,18,25,20,29,25,19,20,20,20,22,20,18,22,16,15,13,19,41,3,27,8,27,0,4,0,0,0,0,0,8,15,39,43,37,39,33,44,44,34,38,39,66,60,64,20,16,16,15,18,18,14,23,20,81,85,77,13,56,63,56,49,87,88,179,162,338,339,333,91,261,261,261,251,333,326]} 1. d4 {[%emt 0:00:02]} d5 {[%emt 0:00:07]} 2. c4 {[%emt 0:00:07]} dxc4 {[%emt 0:00:05]} 3. e4 {[%emt 0:00:12]} e5 {[%emt 0:00:57]} 4. Nf3 {[%emt 0:00:08]} Bb4+ {[%emt 0:00:19]} 5. Nc3 {[%emt 0:00:13]} Nf6 {[%emt 0:00:08]} (5... exd4 {simplifies} 6. Qxd4 Qxd4 7. Nxd4 Nf6) 6. Nxe5 {[%emt 0:00:25] D20: Queen's Gambit Accepted: 3 e3 and 3 e4.} b5 {[%emt 0:00:09] Inhibits Qa4.} 7. Bg5 $5 {[%emt 0:00:05][%mdl 4] [#] Exploring less charted territory.} c5 $146 {[%emt 0:00:22]} ({Predecessor:} 7... O-O 8. Be2 c5 9. O-O cxd4 10. Nd5 Be7 11. Nxe7+ Qxe7 12. Qxd4 Rd8 13. Qc3 Re8 {½-½ (49) Ding,L (2801)-Yu,Y (2738) Ningbo 2019}) 8. dxc5 {[%emt 0:04:56] White has an edge.} Qe7 {[%emt 0:00:13]} 9. Nf3 {[%emt 0:00:23]} Nbd7 {[%emt 0:01:11]} 10. Be2 $1 {[%emt 0:05:50]} Bb7 {[%emt 0:01:09] Inhibits c6.} 11. O-O {[%emt 0:04:28]} Bxc3 {[%emt 0:00:23]} 12. bxc3 {[%emt 0:00:07]} O-O {[%emt 0:00:12]} 13. a4 {[%emt 0:04:54]} a6 {[%emt 0:00:15]} 14. axb5 {[%emt 0:10:32]} axb5 {[%emt 0:00:11]} 15. Rb1 {[%emt 0:13:10]} Qxc5 {[%emt 0:00:29]} 16. Be3 {[%emt 0:01:03]} Qc7 {[%emt 0:00:43]} 17. Rxb5 {[%emt 0:11:40]} Bxe4 {[%emt 0:01:11]} 18. Qd2 {[%emt 0:05:46]} Ra4 {[%emt 1:04:02]} 19. Rd1 {[%emt 0:06:14]} Rfa8 {[%emt 0:05:35]} 20. Bf4 {[%emt 0:06:35] A strong pair of Bishops.} Qc6 {[%emt 0:05:41]} 21. Nd4 {[%emt 0:04:45]} Qa6 {[%emt 0:00:10]} 22. h3 {[%emt 0:01:50]} Re8 {[%emt 0:02:49]} 23. Bf1 {[%emt 0:05:14]} Ra2 {[%emt 0:03:00]} 24. Rb2 {[%emt 0:01:22]} Rxb2 {[%emt 0:00:41]} 25. Qxb2 {[%emt 0:00:05]} Bd3 {[%emt 0:04:16]} 26. Qb5 {[%emt 0:04:23] Against Nd5} Qxb5 {[%emt 0:03:43]} 27. Nxb5 {[%emt 0:00:05]} Bxf1 {[%emt 0:07:01]} 28. Kxf1 {[%emt 0:00:32]} Nc5 {[%emt 0:03:23]} 29. Be3 {[%emt 0:07:21]} Ne6 {[%emt 0:00:38]} 30. Nd6 {[%emt 0:02:56][%csl LRc4,LRe8]} Ra8 {[%emt 0:00:22]} 31. Ke2 {[%emt 0:01:24]} (31. Bd4 {simplifies} Nd5 32. Nxc4 Nxd4 33. cxd4 Kf8 34. g3) 31... Ra3 {[%emt 0:03:12]} (31... Ra2+ {simplifies} 32. Kf3 Rc2 33. Rc1 Rxc1 34. Bxc1 Nd5) 32. Rb1 {[%emt 0:02:19] And now Rb8+ would win.} Rxc3 {[%emt 0:02:01]} 33. Rb8+ {[%emt 0:02:26]} Nf8 {[%emt 0:00:01]} 34. Nf5 {[%emt 0:01:47][%mdl 1024] Ne7+ would kill now. White has compensation.} N6d7 $1 {[%emt 0:00:20]} 35. Re8 {[%emt 0:02:07]} f6 {[%emt 0:02:18]} (35... Rc2+ $11 {keeps the balance.} 36. Kd1 Rb2) 36. Re7 $1 $16 {[%emt 0:01:09] White is more active.} g6 {[%emt 0:00:05]} 37. Nd6 {[%emt 0:01:07]} (37. Nh6+ $16 Kh8 38. Ng4) 37... Rc2+ {[%emt 0:00:58]} (37... Rd3 $5 {[%cal Rd3d6]} 38. Nxc4 Rd5 $14) 38. Kf1 {[%emt 0:00:35] Hoping for Bh6.} g5 $1 {[%emt 0:00:31]} 39. h4 {[%emt 0:00:34][%cal Bh3h4,Bh4g5][%mdl 32]} Ra2 {[%emt 0:00:36]} (39... gxh4 $2 40. Bh6 Ne5 41. Ne4 $18) 40. hxg5 {[%emt 0:00:11]} ({Much weaker is} 40. Nxc4 gxh4 41. Bh6 Ra1+ 42. Ke2 Ra6 $11) 40... Ra1+ {[%emt 0:00:25]} (40... c3 $16 {was necessary.}) 41. Ke2 $18 {[%emt 0:50:08] aiming for Bd4.} Ra6 $2 {[%emt 0:03:36]} (41... Ra2+ 42. Kd1 Ra5) 42. Nf5 $1 {[%emt 0:00:00] Black must now prevent Nh6+.} (42. Nxc4 fxg5 43. Bxg5 Rg6 $16) 42... Re6 {[%emt 0:08:51]} 43. Nh6+ {[%emt 0:00:00]} Kh8 {[%emt 0:00:09] [#]} 44. Rf7 {[%emt 0:00:00] Strongly threatening gxf6. White has a decisive advantage.} fxg5 {[%emt 0:35:58] [#]} 45. Kf1 $1 {[%emt 0:00:00][%cal Of7f8] Rxf8+! is the strong threat.} Rd6 {[%emt 0:03:21] [#]} (45... Rxh6 46. Bd4+) 46. Rxf8+ $1 {[%emt 0:00:00][%mdl 576] Weighted Error Value: White=0.14 (very precise) /Black=0.17 (very precise)} 1-0

[Event "German Bundesliga 2022-23"]
[Site "Germany"]
[Date "2022.11.27"]
[Round "4.13"]
[White "Jovanovic, Zoran"]
[Black "Naiditsch, Arkadij"]
[Result "1/2-1/2"]
[ECO "B40"]
[WhiteElo "2513"]
[BlackElo "2667"]
[Annotator "TA"]
[PlyCount "69"]
[EventDate "2022.10.21"]
[EventType "team-tourn"]
[EventCountry "GER"]
[SourceTitle "playchess.com"]
[Source "ChessBase"]
[SourceQuality "1"]
[TimeControl "40/6000+30:3000+30"]

{[%evp 9,69,4,13,9,3,0,15,19,33,44,43,14,13,7,16,9,17,19,17,12,26,24,13,21,13,0,0,0,37,0,0,-54,-53,-61,-20,-81,-81,-81,-89,-85,-81,-103,-99,-104,-99,-99,-96,-96,-97,-100,-23,-104,-27,-14,-12,-12,0,-25,0,-12,0,-28]} 1. e4 {[%emt 0:00:03]} c5 {[%emt 0:00:06]} 2. Nf3 {[%emt 0:00:09]} e6 {[%emt 0:00:08]} 3. g3 {[%emt 0:09:00]} Nc6 {[%emt 0:00:54]} 4. Bg2 {[%emt 0:00:02]} Nf6 {[%emt 0:00:40]} 5. Qe2 {[%emt 0:00:30]} e5 {[%emt 0:00:56]} 6. Nc3 {[%emt 0:02:30] B40: Sicilian: 2...e6, Unusual lines.} d6 {[%emt 0:01:25]} 7. Nd5 {[%emt 0:02:17] [#]} Nxd5 $146 {[%emt 0:07:48]} (7... Be6 $5 {[%cal Rf6d5]}) ({Predecessor:} 7... Be7 8. O-O Be6 9. Ne1 O-O 10. c3 Bxd5 11. exd5 Nb8 12. Nc2 Nbd7 13. d3 Re8 {0-1 (43) Murzin,V (2532)-Matlakov,M (2674) Chess.com INT 2022}) 8. exd5 {[%emt 0:00:43]} Ne7 {[%emt 0:01:09]} 9. c3 {[%emt 0:16:43]} g6 {[%emt 0:18:19]} 10. d4 {[%emt 0:10:29]} (10. Nxe5 {keeps more tension.} dxe5 11. Qxe5 f6 12. Qxf6 Rg8 13. O-O) 10... cxd4 {[%emt 0:04:34]} 11. cxd4 {[%emt 0:00:17]} Bg7 {[%emt 0:00:07]} 12. dxe5 {[%emt 0:00:15]} dxe5 {[%emt 0:01:47]} 13. Nxe5 {[%emt 0:03:20][%cal Bf3e5,Be5g4,Bg4h6][%mdl 32]} O-O {[%emt 0:00:32]} 14. O-O {[%emt 0:00:54]} Re8 $1 {[%emt 0:09:03]} 15. Ng4 {[%emt 0:06:15]} Nxd5 {[%emt 0:02:44]} 16. Qf3 {[%emt 0:00:41] White wants to play Nh6+.} Be6 {[%emt 0:14:55]} 17. Nh6+ {[%emt 0:10:32]} Kf8 $1 {[%emt 0:00:33]} 18. Rd1 {[%emt 0:00:32]} Rc8 {[%emt 0:13:10]} 19. h4 {[%emt 0:13:51] Black must now prevent Bg5.} (19. Rxd5 $2 {loses.} Qxd5 20. Qxd5 Bxd5 21. Bxd5 Re1+ 22. Kg2 f5 $19) 19... Qf6 {[%emt 0:13:52]} 20. Qa3+ {[%emt 0:04:30]} ({Better is} 20. Qd3 $11 Rxc1 21. Raxc1 Bxh6 22. Bxd5 Bxc1 23. Rxc1) 20... Qe7 $15 {[%emt 0:01:14]} 21. Qxe7+ {[%emt 0:11:27]} Nxe7 {[%emt 0:00:06]} (21... Rxe7 {feels hotter.} 22. Bg5 Rd7 23. Rac1 Rc6) 22. Bxb7 {[%emt 0:00:07] [#]} (22. Bg5 $11 {keeps the balance.}) 22... Rxc1 $1 $17 {[%emt 0:01:11][%mdl 64] Remove Defender} 23. Raxc1 {[%emt 0:00:02][%cal Oh6f7]} Bxh6 {[%emt 0:00:07] A strong pair of Bishops.} 24. Rc7 {[%emt 0:00:03]} Bxa2 {[%emt 0:08:53]} 25. Ra1 {[%emt 0:00:15]} Be6 {[%emt 0:00:05]} 26. Rxa7 {[%emt 0:00:07]} Bg7 {[%emt 0:00:20]} 27. Rc2 {[%emt 0:03:58]} Nf5 {[%emt 0:00:02][%cal Of5g3] aiming for ...Nxg3!} 28. Ra8 {[%emt 0:00:22]} Nd4 {[%emt 0:00:23]} (28... Rxa8 {simplifies} 29. Bxa8 h5 30. Kg2 Nd4) 29. Rc7 {[%emt 0:06:56]} Nb3 {[%emt 0:00:51]} (29... Rxa8 $17 30. Bxa8 Nb3) 30. Rxe8+ $11 {[%emt 0:00:19]} Kxe8 {[%emt 0:00:02]} 31. Bc8 $1 {[%emt 0:00:10]} Bd5 {[%emt 0:03:02]} (31... Bxb2 $2 32. Bxe6 fxe6 33. Rb7 $18 (33. Rxh7 Nc5 $11)) 32. Bb7 {[%emt 0:00:38]} Be6 {[%emt 0:00:11][%cal Og7e5]} 33. Bc8 $1 {[%emt 0:00:03]} Bd5 {[%emt 0:00:41][%cal Og7e5]} (33... Bxb2 $2 34. Bxe6 fxe6 35. Rb7 $18 (35. Rxh7 Nc5 $11)) 34. Bb7 {[%emt 0:00:07]} Be6 {[%emt 0:00:04][%cal Og7e5]} 35. Bc8 $1 {Weighted Error Value: White=0.12 (very precise) /Black=0.09 (flawless)} 1/2-1/2

[Event "German Bundesliga 2022-23"]
[Site "Germany"]
[Date "2022.11.27"]
[Round "4.14"]
[White "Donchenko, Alexander"]
[Black "Kovacevic, Aleksandar"]
[Result "1/2-1/2"]
[ECO "A20"]
[WhiteElo "2645"]
[BlackElo "2470"]
[Annotator "TA"]
[PlyCount "41"]
[EventDate "2022.10.21"]
[EventType "team-tourn"]
[EventCountry "GER"]
[SourceTitle "playchess.com"]
[Source "ChessBase"]
[SourceQuality "1"]
[TimeControl "40/6000+30:3000+30"]

{[%evp 14,41,-4,-1,11,0,27,0,13,-35,-28,-22,-38,-25,-30,-28,-19,-29,-28,-46,-22,-34,-27,-38,0,-79,-43,-43,-35,-50]} 1. c4 {[%emt 0:00:19]} e5 {[%emt 0:02:32]} 2. g3 {[%emt 0:01:40]} Nf6 {[%emt 0:00:30]} 3. Bg2 {[%emt 0:00:25]} c6 {[%emt 0:00:31]} 4. Nf3 {[%emt 0:07:37]} e4 {[%emt 0:00:48]} 5. Nd4 {[%emt 0:00:16]} d5 {[%emt 0:02:49]} 6. cxd5 {[%emt 0:01:16]} Qxd5 {[%emt 0:00:14]} 7. Nc2 {[%emt 0:02:32]} Qh5 {[%emt 0:01:27]} 8. h3 {[%emt 0:04:03]} Na6 {[%emt 0:13:33] A20: English Opening: 1...e5.} 9. Nc3 {[%emt 0:02:48] [#]} Qe5 $146 {[%emt 0:00:52]} ({Predecessor:} 9... Qg6 10. O-O Bd6 11. d3 exd3 12. Ne1 Qh5 13. Nxd3 Bxh3 14. Bf4 Bxg2 15. Kxg2 O-O-O 16. Qa4 Bxf4 17. Nxf4 {0-1 (49) Melkumyan,H (2655)-Izoria,Z (2602) Chess.com INT 2022}) 10. Rb1 {[%emt 0:10:31]} (10. d4 {keeps more tension.} exd3 11. Qxd3 Nb4 12. Nxb4 Bxb4 13. O-O) 10... Bf5 {[%emt 0:03:33] The position is equal.} 11. Ne3 {[%emt 0:12:54]} (11. b4 $11) 11... Bg6 $15 {[%emt 0:01:36]} 12. a3 {[%emt 0:00:59]} Bc5 {[%emt 0:02:51]} 13. Qc2 {[%emt 0:04:03]} Bd4 {[%emt 0:05:27]} 14. b4 {[%emt 0:02:03]} Nc7 {[%emt 0:01:03]} 15. Bb2 {[%emt 0:09:13]} O-O {[%emt 0:03:10]} 16. O-O {[%emt 0:02:48]} Rad8 {[%emt 0:05:00]} 17. Na4 {[%emt 0:06:48]} Nb5 {[%emt 0:12:48]} 18. Nc3 {[%emt 0:01:09][%cal Ba4c3,Bc3a2,Ba2c1][%mdl 32]} Nc7 {[%emt 0:06:23]} 19. Rfd1 {[%emt 0:03:22]} (19. Na4 $11) 19... b5 {[%emt 0:04:19]} 20. Na2 {[%emt 0:08:05]} Ne6 {[%emt 0:02:30] And now ...Nh5 would win.} 21. Nc1 $1 {[%emt 0:01:40] Weighted Error Value: White=0.17 (very precise) /Black=0.12 (very precise)} 1/2-1/2